bitfinex/quotes_ETHUSD_20260129
["timestamp","ask_amount","ask_price","bid_price","bid_amount"]
[1769650155020,0.78383552,2998.2,2996.6,2.15399917]
[1769650155225,3.07317249,2998.3,2996.6,2.15399917]
[1769650155426,2.23934706,2998.2,2996.7,0.26682325]
[1769650155628,2.23934706,2998.2,2996.8,0.699]
[1769650156046,0.33351313,2998.3,2996.8,0.699]
[1769650156047,0.33351313,2998.3,2996.8,2.85299917]
[1769650156221,0.04986785,2999.2,2996.8,2.85299917]
[1769650156222,2.23934706,2999.4,2997.2,10.0038703]
[1769650156418,2.23934706,2999.1,2997.3,0.834084]
[1769650156961,2.23934706,2999.1,2997.4,2.15399917]
[1769650157659,2.28921491,2999.1,2997.3,0.834084]
[1769650157860,2.23934706,2998.9,2997.4,0.417042]
[1769650158544,1.14091858,2999.0,2997.6,2.15399917]
[1769650158867,2.54663733,2999.0,2997.5,0.83402835]
[1769650159025,3.38025969,2999.0,2997.5,0.83402835]
[1769650159360,0.33802597,2998.9,2997.6,0.45871838]
[1769650159764,2.23934706,2998.8,2997.6,0.45871838]
[1769650159950,2.23934706,2998.8,2996.7,0.26682325]
[1769650160154,0.38789382,2998.9,2997.0,0.83415488]
[1769650160155,2.23934706,2997.9,2997.0,0.83415488]
[1769650160324,2.23934706,2997.9,2996.9,0.83417943]
[1769650160524,2.23934706,2997.9,2996.8,3.33688841]
[1769650160525,0.001,2998.0,2996.8,5.49088758]
[1769650160957,0.001,2998.0,2996.9,2.15399917]
[1769650161155,0.001,2998.0,2997.0,0.54908876]
[1769650162068,0.001,2998.0,2997.0,2.70308793]
[1769650162867,3.0730559,2998.7,2997.1,0.83413966]
[1769650163054,2.23934706,2998.7,2997.1,0.83413966]
[1769650163564,2.23934706,2998.7,2997.2,0.699]
[1769650163765,0.30729027,2999.0,2997.3,2.15399917]
[1769650163965,3.07293128,2999.1,2997.3,2.15399917]
[1769650164264,2.23934706,2999.0,2997.3,2.15399917]
[1769650164481,2.23934706,2999.0,2997.1,0.83413966]
[1769650164646,2.23934706,2998.8,2997.2,1.17097871]
[1769650164850,0.8336946,2998.7,2997.2,1.17097871]
[1769650165040,2.14374166,2998.6,2997.3,0.834084]
[1769650165679,2.14374166,2998.6,2997.2,0.83409133]
[1769650166039,2.14374166,2998.4,2997.2,0.83409133]
[1769650166239,2.14374166,2998.2,2997.2,0.83409133]
[1769650166838,2.14374166,2998.2,2997.1,0.83413559]
[1769650167038,2.14374166,2998.0,2996.8,0.83422317]
[1769650169642,3.10876446,2998.4,2996.8,0.83422317]
[1769650169874,0.64438019,2998.3,2996.9,0.51369391]
[1769650170180,2.91934732,2998.3,2996.9,0.51369391]
[1769650170842,2.91934732,2998.3,2996.9,2.81873784]
[1769650171071,2.27496713,2998.3,2996.9,2.81873784]
[1769650171558,2.27496713,2998.2,2997.0,0.8341675]
[1769650173254,2.27496713,2998.2,2997.1,0.002]
[1769650173450,2.27496713,2998.0,2997.1,0.002]
[1769650174646,3.10871733,2998.5,2997.1,0.002]
[1769650174952,0.31097173,2998.4,2997.1,0.002]
[1769650175157,2.58593886,2998.4,2997.1,0.002]
[1769650175546,2.27496713,2998.2,2997.1,0.002]
[1769650177877,2.27496713,2998.0,2997.1,0.002]
[1769650179178,3.10878646,2998.3,2997.1,0.002]
[1769650179376,0.41691035,2998.1,2997.1,0.002]
[1769650180479,1.25077241,2998.1,2997.1,0.002]
[1769650180701,3.52573954,2998.1,2997.1,0.002]
[1769650182365,3.52573952,2998.1,2997.1,0.002]
[1769650182554,0.35257395,2998.0,2997.1,0.002]
[1769650183673,3.10879412,2998.3,2997.1,0.002]
[1769650183855,2.27496713,2998.2,2997.1,0.002]
[1769650184554,3.10880734,2998.2,2997.1,0.002]
[1769650186285,2.27496713,2998.2,2997.1,0.002]
[1769650186462,2.27496713,2998.2,2997.3,0.002]
[1769650186785,0.31087938,2998.1,2997.3,0.002]
[1769650187083,2.58584651,2998.1,2997.3,0.002]
[1769650188499,2.27496713,2997.9,2997.3,0.002]
[1769650188783,2.32483498,2997.9,2996.9,0.002]
[1769650188975,2.27496713,2997.7,2996.9,0.002]
[1769650191083,2.27496713,2997.5,2996.9,0.002]
[1769650193282,3.10899968,2997.5,2996.9,0.002]
[1769650194088,2.27496713,2997.4,2996.9,0.002]
[1769650194603,2.27496713,2997.4,2996.2,0.83437513]
[1769650194889,2.27496713,2997.2,2996.3,0.83436166]
[1769650195096,2.24027252,2997.0,2995.8,0.83450163]
[1769650195295,2.23822252,2997.0,2995.7,0.83450864]
[1769650195505,2.24027252,2996.8,2995.5,3.3383138]
[1769650195670,2.24027252,2996.8,2995.7,0.83452153]
[1769650197071,0.834251,2996.7,2995.4,2.21789865]
[1769650197315,2.24027252,2996.6,2995.5,0.83458521]
[1769650197592,2.24027252,2996.4,2995.5,0.83458521]
[1769650199767,2.24027252,2996.4,2995.2,3.33863242]
[1769650199968,2.24027252,2996.3,2995.2,3.33863242]
[1769650200405,2.24027252,2996.3,2994.9,0.83472732]
[1769650200699,2.24027252,2996.3,2994.0,7.13997581]
[1769650200700,2.24027252,2995.3,2993.9,2.21789865]
[1769650200865,2.24027252,2996.0,2995.1,0.83469346]
[1769650201089,2.24027252,2996.3,2995.1,0.83469346]
[1769650201294,2.5477333,2996.2,2995.1,1.25204147]
[1769650201721,0.83441807,2996.1,2995.1,1.25204147]
[1769650201909,2.24027252,2996.0,2995.1,1.25204147]
[1769650202536,2.24027252,2996.0,2995.1,0.41734801]
[1769650202837,2.24027252,2996.0,2995.0,0.83470882]
[1769650202838,2.24027252,2996.0,2995.0,0.83472404]
[1769650203618,2.24027252,2996.0,2994.9,0.83473329]
[1769650203818,2.24027252,2996.0,2994.7,3.33922036]
[1769650203819,2.24027252,2995.8,2994.8,3.3391132]
[1769650204609,2.24027252,2995.8,2994.8,0.83478028]
[1769650205824,2.24027252,2995.6,2994.5,0.83486391]
[1769650206024,2.24027252,2995.6,2994.5,1.16901188]
[1769650207534,0.22402725,2995.7,2994.6,2.21789865]
[1769650207832,0.83455735,2995.6,2994.5,1.16901188]
[1769650207998,2.24027252,2995.5,2994.5,1.16901188]
[1769650208198,0.30748299,2995.4,2994.5,1.16901188]
[1769650208822,1.14186729,2996.2,2994.6,2.21789865]
[1769650209103,1.14185426,2996.2,2994.6,2.21789865]
[1769650209519,2.24027252,2996.1,2994.5,1.16901188]
[1769650209830,0.83444592,2996.0,2994.8,2.21789865]
[1769650210031,0.83444592,2996.0,2994.9,0.30527068]
[1769650210500,3.07471844,2996.0,2994.9,0.30527068]
[1769650211003,2.24027252,2995.9,2994.9,0.30527068]
[1769650211208,2.24027252,2995.9,2994.7,0.83480816]
[1769650211720,2.24027252,2995.7,2994.7,0.83480816]
[1769650211920,2.24027252,2995.5,2994.6,3.33923264]
[1769650212118,2.24027252,2995.9,2994.6,3.33923264]
[1769650212298,5.57798013,2996.1,2994.7,2.21789865]
[1769650212500,0.6719859,2996.0,2994.8,0.55571313]
[1769650212802,0.001,2995.6,2994.8,0.55571313]
[1769650214437,0.001,2995.6,2994.6,5.55713129]
[1769650214438,2.24027252,2995.4,2994.5,0.002]
[1769650214601,0.001,2995.6,2994.5,0.002]
[1769650214602,2.29014037,2995.1,2994.5,0.002]
[1769650215008,2.24027252,2995.1,2994.4,0.83488806]
[1769650215235,2.24127252,2995.6,2994.8,0.83477983]
[1769650215628,2.24127252,2995.6,2994.7,0.83478891]
[1769650216132,2.24027252,2995.4,2994.3,0.002]
[1769650216332,0.83464093,2995.3,2994.3,0.002]
[1769650216519,2.24027252,2995.2,2994.3,0.002]
[1769650216728,0.83464093,2995.3,2994.3,0.002]
[1769650216729,2.54776386,2995.1,2994.3,0.002]
[1769650217034,0.83463395,2995.4,2994.3,0.002]
[1769650217442,3.07490647,2995.4,2994.3,0.002]
[1769650217942,2.24027252,2995.3,2994.3,0.002]
[1769650218142,0.30749065,2995.2,2994.3,0.002]
[1769650218912,0.001,2995.6,2994.3,2.21989865]
[1769650220136,0.001,2995.6,2994.4,2.21789865]
[1769650220810,0.001,2995.6,2994.3,0.701]
[1769650220811,2.24027252,2996.5,2995.0,2.21789865]
[1769650221157,0.83426476,2996.7,2995.0,2.21789865]
[1769650221353,0.31244051,2996.6,2995.3,2.21789865]
[1769650221582,0.83420559,2996.9,2995.3,2.21789865]
[1769650221785,3.07446721,2997.0,2995.3,2.21789865]
[1769650221922,2.24027252,2997.0,2995.3,2.21789865]
[1769650222127,3.07444181,2997.0,2995.3,2.21789865]
[1769650222446,2.24027252,2996.8,2995.4,0.94377106]
[1769650222847,3.07449946,2996.8,2995.5,0.83458521]
[1769650223330,2.29014037,2996.7,2995.5,0.83458521]
[1769650224949,1.47532316,2996.9,2995.5,0.83458521]
[1769650225150,0.83422206,2996.9,2995.6,0.51166971]
[1769650225469,2.22161985,2996.8,2995.6,0.51166971]
[1769650226858,0.001,2996.5,2995.7,0.83452949]
[1769650229564,0.001,2996.5,2995.7,3.00626764]
[1769650229857,0.001,2996.5,2995.8,0.68560553]
[1769650231291,2.1838788,2996.5,2995.7,0.83452949]
[1769650231646,2.1838788,2996.5,2995.3,3.33847327]
[1769650233566,0.001,2996.5,2995.4,2.17173815]
[1769650234079,2.1838788,2996.5,2995.3,3.33847327]
[1769650234281,0.21838788,2996.4,2995.4,0.41731421]
[1769650234583,0.21838788,2996.4,2995.3,2.17173815]
[1769650234744,0.001,2996.5,2995.3,2.17173815]
[1769650235549,0.001,2996.5,2995.4,0.83461307]
[1769650235772,0.001,2996.5,2995.5,2.17173815]
[1769650236851,0.001,2996.5,2995.4,0.83461307]
[1769650238249,2.1838788,2996.5,2995.3,5.51019044]
[1769650238575,0.21838788,2996.4,2995.4,3.18622129]
[1769650238804,0.001,2996.5,2995.4,3.18622129]
[1769650239001,0.001,2996.3,2995.4,3.18622129]
[1769650241012,0.001,2996.3,2995.5,0.83458521]
[1769650241472,0.001,2996.5,2995.5,3.00632336]
[1769650241676,0.001,2996.5,2995.6,0.73591473]
[1769650242480,0.001,2996.5,2995.6,2.90765288]
[1769650243906,0.001,2996.5,2995.7,3.00626764]
[1769650247015,0.001,2996.5,2995.8,2.17173815]
[1769650247517,2.1828788,2997.0,2995.8,2.17173815]
[1769650247718,2.1828788,2997.3,2996.0,2.17173815]
[1769650248221,2.1828788,2997.3,2996.1,0.83441807]
[1769650248717,2.1828788,2997.2,2996.1,0.83441807]
[1769650250079,2.1828788,2997.1,2996.0,3.3376723]
[1769650250925,2.1828788,2996.8,2995.8,0.83449244]
[1769650251124,2.1828788,2996.8,2995.7,0.83451469]
[1769650251374,2.1828788,2996.6,2995.5,0.8345821]
[1769650251656,2.1828788,2996.4,2995.5,3.34031339]
[1769650251858,2.1828788,2996.4,2995.6,0.83454057]
[1769650252860,0.8566627,2996.3,2995.3,0.002]
[1769650253865,1.70724008,2996.6,2995.3,2.17373815]
[1769650254020,1.70717666,2996.8,2995.3,2.17373815]
[1769650254216,1.70717666,2996.8,2995.5,2.17173815]
[1769650254217,0.87293701,2996.8,2995.5,2.17173815]
[1769650254452,0.04986785,2997.4,2995.5,2.17173815]
[1769650254453,0.83421366,2996.9,2995.5,2.17173815]
[1769650254645,0.83518856,2997.0,2995.5,2.17173815]
[1769650255054,0.001,2997.0,2995.7,2.25768165]
[1769650256742,0.93715462,2997.0,2995.6,0.83455735]
[1769650256940,1.77040562,2996.7,2995.5,3.3382294]
[1769650258461,1.78575585,2996.7,2995.5,3.3382294]
[1769650258628,0.95150485,2996.6,2995.5,3.3382294]
[1769650259361,0.83430669,2996.5,2995.5,3.3382294]
[1769650259542,0.95150485,2996.6,2995.5,3.3382294]
[1769650259543,1.78580399,2996.6,2995.5,3.3382294]
[1769650259760,1.3465879,2996.6,2995.6,0.6731337]
[1769650260565,0.51228876,2996.6,2995.6,0.6731337]
[1769650260939,0.51228876,2996.6,2995.6,2.93081535]
[1769650261131,1.34656895,2996.6,2995.6,0.6731337]
[1769650261334,2.34308593,2996.6,2995.6,0.6731337]
[1769650261534,1.40234256,2996.5,2995.7,0.83452949]
[1769650262744,1.40234256,2996.5,2995.6,0.83453651]
[1769650262945,1.07551341,2996.4,2995.3,0.002]
[1769650263471,1.07551341,2996.4,2995.1,0.8346919]
[1769650263678,1.02364556,2996.1,2994.8,0.83478028]
[1769650265695,1.90059434,2996.0,2994.7,3.33912114]
[1769650266170,1.06614842,2995.9,2994.7,3.33912114]
[1769650266485,1.06614842,2995.9,2994.7,0.83480816]
[1769650266660,1.08003257,2995.7,2994.6,0.83481656]
[1769650267362,1.91447849,2996.0,2994.6,3.09249821]
[1769650267670,0.83450163,2995.8,2994.8,0.83478028]
[1769650269268,0.83450163,2995.8,2994.7,3.09247362]
[1769650269472,0.83450163,2995.8,2994.6,1.8121571]
[1769650269473,1.10728657,2995.7,2994.6,1.8121571]
[1769650269658,1.12066915,2995.5,2994.5,0.002]
[1769650269857,1.12066915,2995.3,2994.5,0.002]
[1769650271348,1.13189739,2994.9,2994.1,0.002]
[1769650271853,1.14098696,2994.7,2993.5,0.002]
[1769650272052,1.34355047,2994.6,2993.5,0.002]
[1769650272268,0.04986785,2994.5,2993.5,0.002]
[1769650272444,1.19085481,2994.5,2993.5,0.002]
[1769650274063,1.21466193,2994.3,2993.5,0.002]
[1769650274263,1.21266193,2994.1,2993.1,0.002]
[1769650274466,0.04986785,2993.9,2993.1,0.002]
[1769650274777,1.21266193,2993.9,2993.1,0.002]
[1769650275899,0.20495537,2994.2,2993.7,0.002]
[1769650276060,0.83497545,2994.1,2993.7,0.002]
[1769650276246,0.20495537,2994.2,2993.7,0.002]
[1769650276484,1.18796592,2994.6,2993.7,0.002]
[1769650276795,1.23783377,2994.6,2993.7,0.002]
[1769650278317,2.04745679,2994.5,2993.7,0.002]
[1769650278514,0.54367803,2994.4,2993.7,0.002]
[1769650279619,0.54367803,2994.4,2993.7,2.25968165]
[1769650279805,1.23665125,2995.1,2993.7,2.25968165]
[1769650279806,0.83469667,2995.1,2993.7,2.25968165]
[1769650280016,0.04986785,2995.0,2993.7,2.25968165]
[1769650280221,0.83475241,2994.9,2993.8,0.83505912]
[1769650280424,0.42236299,2994.8,2993.8,1.4785637]
[1769650280631,0.47223084,2994.8,2993.8,0.64350458]
[1769650280802,0.04986785,2994.6,2993.7,0.002]
[1769650281128,0.04986785,2994.7,2993.7,0.002]
[1769650281300,0.04986785,2994.5,2993.7,0.002]
[1769650281500,1.29834878,2994.5,2993.7,0.002]
[1769650281920,0.04986785,2994.3,2993.7,0.002]
[1769650282241,0.83494756,2994.2,2993.7,0.002]
[1769650282445,0.41747378,2994.1,2993.5,0.002]
[1769650282650,0.04986785,2994.0,2993.1,0.002]
[1769650282805,0.04986785,2994.0,2993.1,0.83724747]
[1769650283003,0.04986785,2994.0,2993.1,0.002]
[1769650283234,0.04986785,2994.0,2993.1,0.83725383]
[1769650284435,0.83500334,2994.0,2993.1,0.002]
[1769650284652,0.45924752,2993.9,2993.1,0.002]
[1769650285017,0.04986785,2993.6,2993.1,0.002]
[1769650285218,0.04986785,2993.6,2992.8,0.83532937]
[1769650285401,0.04986785,2993.6,2992.7,0.8353455]
[1769650285937,0.04986785,2993.6,2992.4,2.51441816]
[1769650285938,0.04986785,2993.6,2992.4,3.34984895]
[1769650286133,0.04986785,2993.6,2992.4,3.93568578]
[1769650286740,0.8351428,2993.5,2992.4,3.93568578]
[1769650287316,0.83505912,2993.8,2992.5,2.51241816]
[1769650287521,0.83505912,2993.8,2992.6,0.39356858]
[1769650287728,0.83505912,2993.8,2992.4,1.42326762]
[1769650287942,0.83505912,2993.8,2992.5,2.51241816]
[1769650288142,0.83505912,2993.8,2993.3,0.002]
[1769650288626,3.34022062,2993.9,2993.3,0.002]
[1769650288821,0.42251197,2993.8,2993.3,0.002]
[1769650289052,0.42251197,2993.8,2993.0,0.002]
[1769650290164,1.78476123,2993.8,2993.0,0.002]
[1769650290671,0.83508701,2993.7,2993.0,0.002]
[1769650291563,1.25246744,2994.1,2993.0,2.46167534]
[1769650291722,0.83496331,2994.2,2993.1,2.70584287]
[1769650291929,1.53490092,2994.4,2993.1,2.70584287]
[1769650292154,1.53490202,2994.4,2993.1,2.70584287]
[1769650292723,1.53490202,2994.4,2993.3,2.45967534]
[1769650292927,1.53490202,2994.4,2993.5,2.45967534]
[1769650293742,1.53490202,2994.4,2993.4,0.32949019]
[1769650294661,0.83490202,2994.4,2993.4,0.32949019]
[1769650294960,0.83480816,2994.7,2993.4,1.16464362]
[1769650295262,0.83480816,2994.7,2993.4,3.62431896]
[1769650295455,0.62678879,2994.6,2993.5,0.69650319]
[1769650295844,0.62678879,2994.6,2993.5,3.15617853]
[1769650296380,0.62678879,2994.6,2993.6,2.45967534]
[1769650296765,0.83486391,2994.5,2993.6,2.45967534]
[1769650296960,0.83486391,2994.5,2993.6,3.2947874]
[1769650297163,0.48011084,2994.4,2993.6,2.45967534]
[1769650299169,0.83491968,2994.3,2993.6,2.45967534]
[1769650300073,0.83491968,2994.3,2993.4,1.16464001]
[1769650300272,0.83491968,2994.3,2993.4,0.32949019]
[1769650301227,0.83491968,2994.3,2993.3,2.45967534]
[1769650301431,1.46946077,2994.2,2993.0,3.29695448]
[1769650301857,1.46946077,2994.2,2993.0,2.46167534]
[1769650302362,1.46946077,2994.2,2993.0,0.002]
[1769650302560,0.23542483,2994.1,2993.0,0.83728088]
[1769650302764,0.23542483,2994.1,2993.1,0.83524612]
[1769650303552,0.83500334,2994.0,2993.0,3.29695766]
[1769650305639,0.83500334,2994.0,2993.0,2.46167534]
[1769650305838,0.44104141,2993.9,2993.0,2.46167534]
[1769650306386,0.44104141,2993.9,2993.0,3.29695142]
[1769650306570,0.44104141,2993.9,2993.0,2.46167534]
[1769650307540,0.44104141,2993.9,2993.0,3.29695592]
[1769650308268,1.27609334,2993.9,2993.0,3.29695592]
[1769650309245,0.46161932,2993.8,2993.0,3.29695592]
[1769650310137,0.83494049,2994.3,2993.2,2.45967534]
[1769650312058,0.83494049,2994.3,2993.3,0.83519861]
[1769650312259,0.83494049,2994.3,2993.4,2.45967534]
[1769650314579,0.83494049,2994.3,2993.5,2.45967534]
[1769650314744,1.30050575,2994.3,2993.5,2.45967534]
[1769650315578,0.001,2994.5,2993.5,2.45967534]
[1769650316467,0.001,2994.5,2993.7,2.57608584]
[1769650318469,0.001,2994.8,2993.9,2.57608584]
[1769650320571,0.83461307,2995.4,2994.1,2.57608584]
[1769650320890,0.83453762,2995.7,2994.3,2.57608584]
[1769650321183,3.33804588,2995.8,2994.3,2.57608584]
[1769650321184,0.83548908,2995.9,2994.3,2.57608584]
[1769650321403,0.83547609,2995.9,2994.5,2.57608584]
[1769650321582,0.001,2995.9,2994.5,2.57608584]
[1769650321775,0.83547658,2995.9,2994.7,2.57608584]
[1769650322693,0.001,2995.9,2994.9,2.57608584]
[1769650323680,0.001,2995.7,2994.9,2.57608584]
[1769650325077,0.001,2995.7,2995.1,2.57608584]
[1769650325691,0.001,2995.7,2995.2,2.57608584]
[1769650327291,0.001,2995.7,2994.6,2.57608584]
[1769650327501,0.001,2995.7,2994.8,0.83477339]
[1769650327668,0.001,2995.7,2994.9,3.41081207]
[1769650329068,0.001,2995.7,2994.9,2.57608584]
[1769650329277,0.001,2995.7,2995.0,3.41080737]
[1769650329278,0.16939587,2995.7,2995.0,3.41080737]
[1769650329560,0.001,2995.7,2995.0,3.41080737]
[1769650329987,0.001,2995.7,2995.0,2.57608584]
[1769650331491,0.001,2995.7,2995.0,3.41080895]
[1769650331697,0.001,2995.7,2995.0,2.57608584]
[1769650331898,0.001,2995.7,2995.0,3.41080721]
[1769650332293,0.001,2995.7,2995.0,3.41080745]
[1769650332494,0.001,2995.7,2995.0,2.57608584]
[1769650332704,0.001,2995.7,2995.1,2.57608584]
[1769650332906,0.83433453,2996.4,2995.1,2.57608584]
[1769650333515,1.5343076,2996.5,2995.3,2.57608584]
[1769650333690,3.33697323,2996.8,2995.3,2.57608584]
[1769650334015,3.92622877,2996.8,2995.5,2.57608584]
[1769650335886,3.92622877,2996.8,2995.7,2.57608584]
[1769650336892,1.42347871,2996.8,2995.7,2.57608584]
[1769650338515,3.17376774,2996.8,2995.7,2.57608584]
[1769650339404,1.75607819,2996.7,2995.7,2.57608584]
[1769650339601,2.07403388,2996.6,2995.1,2.57608584]
[1769650339914,1.42347871,2996.8,2995.1,2.57608584]
[1769650339915,1.7618025,2996.4,2995.1,2.57608584]
[1769650340610,1.7618025,2996.2,2994.8,2.57608584]
[1769650341429,0.83436238,2996.3,2994.8,2.57608584]
[1769650342817,5.11562599,2996.7,2995.0,2.57608584]
[1769650343018,0.65391325,2996.6,2995.2,2.57608584]
[1769650343314,2.43244318,2996.6,2995.2,2.57608584]
[1769650346013,0.83430669,2996.5,2995.3,2.6969001]
[1769650346921,0.83430669,2996.5,2995.3,2.6989001]
[1769650347104,0.001,2996.4,2995.3,2.6989001]
[1769650347305,0.001,2996.4,2995.5,2.6969001]
[1769650348202,0.001,2996.4,2995.6,3.53145745]
[1769650348424,0.001,2996.4,2995.7,2.6969001]
[1769650350331,0.001,2996.4,2995.7,3.53142537]
[1769650351493,0.001,2996.4,2995.7,2.6969001]
[1769650351792,0.001,2996.4,2995.7,3.38387011]
[1769650352024,0.001,2996.4,2995.7,4.21839679]
[1769650352393,0.001,2996.4,2995.8,2.76963221]
[1769650354411,0.001,2996.4,2995.8,3.60412922]
[1769650354615,0.83518272,2997.0,2995.9,2.76963221]
[1769650354926,0.83518272,2997.0,2996.1,2.76963221]
[1769650355526,2.68471488,2997.0,2996.0,0.36041292]
[1769650356234,0.83518272,2997.0,2996.0,0.36041292]
[1769650356533,1.8542127,2996.7,2995.6,2.76963221]
[1769650356913,1.8542127,2996.7,2995.6,3.60418866]
[1769650357503,0.83422317,2996.8,2995.7,2.76963221]
[1769650357703,0.83422317,2996.8,2995.9,2.76963221]
[1769650358524,0.001,2997.0,2996.0,2.76963221]
[1769650359228,0.001,2997.0,2996.3,0.002]
[1769650359410,0.001,2996.8,2996.3,0.002]
[1769650361478,1.85217466,2997.7,2996.4,2.76963221]
[1769650361664,1.85217466,2997.9,2996.6,2.76963221]
[1769650361815,0.83390447,2998.0,2996.6,2.76963221]
[1769650362144,0.83395243,2997.8,2996.6,2.76963221]
[1769650362339,0.8339081,2998.0,2996.6,2.76963221]
[1769650362532,0.83391931,2997.9,2996.6,2.76963221]
[1769650362839,0.83483496,2998.2,2996.8,2.76963221]
[1769650363025,0.83483637,2998.2,2996.8,2.76963221]
[1769650363616,0.001,2998.2,2996.8,2.76963221]
[1769650363928,0.001,2998.2,2997.0,2.76963221]
[1769650366267,0.001,2998.2,2997.0,0.83416377]
[1769650366549,0.001,2998.6,2997.2,2.76963221]
[1769650367043,0.83472454,2998.6,2997.2,2.76963221]
[1769650367242,0.83472454,2998.6,2997.4,2.76963221]
[1769650368647,1.80024916,2998.5,2997.3,0.28195001]
[1769650369344,1.80024916,2998.5,2996.7,2.76963221]
[1769650370154,1.78617809,2998.3,2996.7,2.76963221]
[1769650372149,1.77243564,2998.0,2996.7,2.76963221]
[1769650374354,1.75897337,2997.8,2996.7,2.76963221]
[1769650376670,0.83397271,2997.7,2996.7,2.76963221]
[1769650376847,0.83397271,2997.7,2996.8,0.27696322]
[1769650378434,0.83397271,2997.7,2996.8,2.85551308]
[1769650378634,0.001,2998.1,2996.8,2.85551308]
[1769650381069,0.001,2998.1,2996.9,2.57854986]
[1769650381982,0.001,2998.1,2996.9,2.62841771]
[1769650382275,0.8337502,2998.5,2997.2,2.57854986]
[1769650383264,0.001,2998.6,2997.2,2.57854986]
[1769650384677,1.69125702,2998.6,2997.2,2.57854986]
[1769650385385,0.8337502,2998.5,2997.2,2.57854986]
[1769650385679,0.8337502,2998.5,2997.4,2.57854986]
[1769650385858,0.8337502,2998.5,2997.3,0.26284177]
[1769650385859,1.67868372,2998.4,2997.3,0.26284177]
[1769650386188,0.8337502,2998.5,2997.2,2.57854986]
[1769650387683,3.33600083,2998.6,2997.2,2.57854986]
[1769650388269,1.71719258,2998.5,2996.9,2.58054986]
[1769650390171,1.6562678,2998.3,2996.9,2.58054986]
[1769650390366,2.24377037,2998.3,2997.0,2.86430117]
[1769650390872,1.65082484,2998.2,2997.0,2.86430117]
[1769650393240,1.64013725,2998.0,2997.0,2.86430117]
[1769650393576,1.64013725,2998.0,2997.0,2.57854986]
[1769650395242,0.83391707,2997.9,2997.0,2.57854986]
[1769650395668,0.83391707,2997.9,2997.2,0.002]
[1769650397078,2.45336644,2997.9,2997.2,0.002]
[1769650399269,1.6094689,2997.8,2997.2,0.002]
[1769650399470,1.6074689,2997.6,2997.0,0.002]
[1769650399781,0.88378492,2997.9,2997.0,0.002]
[1769650400161,2.48636051,2997.9,2997.0,0.002]
[1769650400478,2.43649266,2997.9,2997.0,0.002]
[1769650401466,1.59774315,2997.7,2997.0,0.002]
[1769650401684,2.42695239,2997.6,2997.0,0.002]
[1769650401883,0.57629545,2997.5,2997.0,0.002]
[1769650403902,0.83405618,2997.4,2997.0,0.002]
[1769650404601,0.83405618,2997.4,2997.0,2.58054986]
[1769650405476,0.83404728,2997.5,2997.0,2.58054986]
[1769650405978,0.83386144,2998.1,2997.0,2.58054986]
[1769650406306,0.64520981,2998.0,2997.2,2.55163639]
[1769650406490,0.83386144,2998.1,2997.2,2.55163639]
[1769650406680,0.83386144,2998.1,2997.5,2.55163639]
[1769650407294,0.83385191,2998.2,2997.5,2.55163639]
[1769650407496,0.001,2998.6,2997.5,2.55163639]
[1769650407697,0.83474294,2998.6,2997.9,2.55163639]
[1769650408004,0.001,2998.6,2997.9,2.55163639]
[1769650408984,0.001,2998.6,2997.6,0.25516364]
[1769650408985,0.8335834,2999.1,2998.2,2.57730769]
[1769650409371,0.001,2998.4,2998.2,2.57730769]
[1769650409574,0.8335834,2999.1,2998.4,2.57730769]
[1769650410209,3.33403622,2999.4,2998.4,2.57730769]
[1769650411111,5.77722961,2999.4,2998.4,2.57730769]
[1769650411297,5.77722961,2999.4,2997.7,2.57730769]
[1769650411891,2.39217246,2998.9,2997.7,2.57730769]
[1769650412101,0.8336946,2998.7,2997.7,2.86055482]
[1769650413510,0.8335834,2999.1,2997.7,2.86055482]
[1769650413824,0.8335834,2999.1,2997.7,1.11721311]
[1769650413988,0.8335834,2999.1,2997.8,2.57730769]
[1769650414175,3.33393722,2999.5,2997.8,2.57730769]
[1769650414380,0.83344445,2999.6,2998.0,2.57730769]
[1769650415186,2.38876413,2999.5,2998.0,2.57730769]
[1769650415998,2.43863198,2999.5,2998.0,2.57730769]
[1769650416196,3.22113834,2999.4,2998.0,2.57730769]
[1769650416396,2.43750616,2999.3,2998.0,2.57730769]
[1769650416600,2.38763831,2999.1,2998.0,2.57730769]
[1769650418131,0.83350003,2999.4,2998.0,2.57730769]
[1769650418315,2.38548736,3000.0,2998.1,2.57730769]
[1769650420122,2.43535521,3000.0,2998.1,2.57730769]
[1769650420287,0.83336111,2999.9,2998.1,2.57730769]
[1769650420488,2.80497978,2999.8,2998.3,2.57730769]
[1769650421110,2.3832084,2999.7,2998.3,2.57730769]
[1769650422290,2.38113657,2999.5,2998.2,0.25973077]
[1769650422716,2.38113657,2999.5,2998.2,2.83703846]
[1769650422926,3.03607246,2999.5,2998.3,0.28370385]
[1769650423497,3.03607246,2999.5,2998.3,2.86101154]
[1769650425023,0.83350003,2999.4,2998.3,2.86101154]
[1769650427004,3.33394402,2999.6,2998.3,2.86101154]
[1769650427206,0.83441667,2999.7,2998.3,2.86101154]
[1769650427535,0.83441667,2999.7,2998.5,2.57730769]
[1769650429730,0.001,2999.7,2998.5,2.57730769]
[1769650434749,0.001,2999.5,2998.5,2.57730769]
[1769650436253,2.36738637,2999.5,2998.5,2.57730769]
[1769650436450,0.001,2999.5,2998.5,2.57730769]
[1769650436750,0.001,2999.5,2998.7,2.53456156]
[1769650439029,2.3637236,2999.3,2998.2,2.53656156]
[1769650439226,2.41624386,2998.9,2998.0,0.002]
[1769650439418,0.24661117,2998.8,2998.0,0.002]
[1769650440944,2.66285503,2998.8,2998.0,0.002]
[1769650441148,3.24993846,2998.7,2998.0,0.002]
[1769650441955,3.24993846,2998.7,2997.2,0.002]
[1769650441956,2.41624386,2998.2,2997.2,0.002]
[1769650442175,2.41624386,2998.0,2997.2,0.002]
[1769650442452,0.8336946,2998.7,2997.2,3.37065699]
[1769650442615,0.8336946,2998.7,2997.3,2.53456156]
[1769650443255,2.41624386,2998.7,2997.3,2.53456156]
[1769650443553,2.41624386,2998.6,2997.4,0.25365616]
[1769650443754,2.41624386,2998.6,2997.2,0.002]
[1769650444319,2.41624386,2998.6,2997.2,2.53656156]
[1769650445372,2.41624386,2998.4,2997.2,2.53656156]
[1769650446747,2.41624386,2998.4,2997.4,0.002]
[1769650447861,0.83380582,2998.3,2997.4,0.002]
[1769650448031,0.83380582,2998.3,2997.4,0.25585616]
[1769650448823,2.41624386,2998.2,2997.4,0.25585616]
[1769650449164,2.41624386,2998.2,2997.4,0.002]
[1769650449958,3.2501053,2998.1,2997.4,0.002]